[Event "4th Memorial Warakomska-B 2020"]
[Site "Suwalki"]
[Date "2020.08.08"]
[Round "4.2"]
[White "Wolagiewicz, Kinga"]
[Black "Kaminski, Maciej"]
[Result "1/2-1/2"]
[ECO "B33"]
[WhiteElo "1719"]
[BlackElo "1869"]
[Annotator "NA"]
[PlyCount "71"]
[EventDate "2020.08.06"]
[EventType "swiss"]
[EventCountry "POL"]
[SourceTitle "playchess.com"]
[Source "ChessBase"]
[SourceQuality "1"]
[TimeControl "40/5400+30:1800+30"]

{[%evp 23,70,-43,32767,-19,-24,32767,32767,32767,32767,-21,0,-26,-4,0,0,-17,32767,-19,-3,-43,-33,-29,-46,-59,32767,-58,-30,-35,32767,-53,-12,-40,-35,32767,32767,32767,32767,32767,32767,32767,32767,32767,32767,-8,-7,32767,-3,0,0]} 1. e4 {[%emt 0:00:00]} c5 {[%emt 0:00:00]} 2. Nf3 {[%emt 0:00:00]} Nc6 {[%emt 0:00:00]} 3. d4 {[%emt 0:00:00]} cxd4 {[%emt 0:00:00]} 4. Nxd4 {[%emt 0:00:00]} Nf6 {[%emt 0:00:00]} 5. Nc3 {[%emt 0:00:10]} e6 {[%emt 0:00:00]} 6. Be3 {[%emt 0:00:25]} Bb4 {[%emt 0:00:06]} 7. Bd3 {[%emt 0:00:40]} d5 {[%emt 0:00:32]} 8. Nxc6 {[%emt 0:05:23]} bxc6 {[%emt 0:00:49]} 9. exd5 {[%emt 0:01:29]} exd5 {[%emt 0:03:30]} 10. Bd2 {[%emt 0:03:24]} O-O {[%emt 0:04:33] B45: Sicilian Four Knights.} 11. O-O {[%emt 0:00:33]} Bg4 {[%emt 0:01:12]} 12. Qc1 {[%emt 0:09:41] [#]} Bh5 $146 {[%emt 0:03:59]} ({Predecessor:} 12... Nd7 13. h3 Be6 14. Qd1 Bd6 15. Qh5 g6 16. Qh6 Ne5 17. Rfe1 Nxd3 18. cxd3 Bf5 {0-1 (47) Kiolbasa,O (2160)-Maltsevskaya,A (2272) chess.com INT 2020}) 13. Ne2 {[%emt 0:08:36]} Bxe2 {[%emt 0:07:45]} 14. Bxe2 {[%emt 0:00:16]} Bxd2 {[%emt 0:00:18]} 15. Qxd2 {[%emt 0:00:06]} Ne4 {[%emt 0:00:21]} 16. Qf4 {[%emt 0:04:04]} Qb8 {[%emt 0:03:35]} 17. Qc1 {[%emt 0:03:36]} Qe5 {[%emt 0:01:04]} 18. Bd3 {[%emt 0:03:02]} f5 {[%emt 0:09:30]} 19. c4 {[%emt 0:08:13]} f4 {[%emt 0:09:26]} 20. cxd5 {[%emt 0:08:44]} cxd5 {[%emt 0:00:10]} 21. Bxe4 {[%emt 0:03:46]} dxe4 {[%emt 0:00:45]} 22. Qc4+ {[%emt 0:04:04]} Kh8 {[%emt 0:00:12]} 23. Rae1 {[%emt 0:02:21]} Rae8 {[%emt 0:03:42]} 24. b3 {[%emt 0:13:48]} f3 {[%emt 0:03:36]} 25. Re3 {[%emt 0:01:33]} fxg2 {[%emt 0:26:23]} 26. Kxg2 {[%emt 0:03:25]} Re6 {[%emt 0:02:16]} 27. Rg3 {[%emt 0:05:43]} Ref6 {[%emt 0:04:12]} 28. Qc3 {[%emt 0:02:37]} Qf5 {[%emt 0:02:42]} 29. Qe3 {[%emt 0:00:35]} R6f7 {[%emt 0:01:35]} 30. Kh1 {[%emt 0:07:21]} Rd7 {[%emt 0:04:00]} 31. Kg2 {[%emt 0:00:38]} h6 {[%emt 0:04:32]} 32. Re1 {[%emt 0:00:47]} a5 {[%emt 0:02:08]} 33. Re2 {[%emt 0:00:24]} Re7 {[%emt 0:00:55]} 34. Kg1 {[%emt 0:00:31]} Rd8 {[%emt 0:01:10]} 35. Rd2 {[%emt 0:00:36]} Rf8 $11 {[%emt 0:01:05]} 36. Kg2 {[%emt 0:00:20]} 1/2-1/2

[Event "4th Memorial Warakomska-B 2020"]
[Site "Suwalki"]
[Date "2020.08.08"]
[Round "4.3"]
[White "Kiolbasa, Damian"]
[Black "Kitewski, Bartosz"]
[Result "1/2-1/2"]
[ECO "A40"]
[WhiteElo "1973"]
[BlackElo "1718"]
[Annotator "ChessBase"]
[PlyCount "107"]
[EventDate "2020.08.06"]
[EventType "swiss"]
[EventCountry "POL"]
[SourceTitle "playchess.com"]
[Source "ChessBase"]
[SourceQuality "1"]
[TimeControl "40/5400+30:1800+30"]

1. d4 {[%emt 0:00:00]} Nf6 {[%emt 0:00:00]} 2. c4 {[%emt 0:00:00]} e6 {[%emt 0:00:00]} 3. g3 {[%emt 0:00:00]} b6 {[%emt 0:01:13]} 4. Bg2 {[%emt 0:00:00]} c6 {[%emt 0:00:05]} 5. e4 {[%emt 0:00:00]} d5 {[%emt 0:00:44]} 6. e5 {[%emt 0:00:11]} Nfd7 {[%emt 0:00:20]} 7. cxd5 {[%emt 0:01:54]} cxd5 {[%emt 0:02:10]} 8. Ne2 {[%emt 0:04:45]} Ba6 {[%emt 0:02:11]} 9. O-O {[%emt 0:00:11]} Nc6 {[%emt 0:00:24]} 10. Re1 {[%emt 0:00:10]} Rc8 {[%emt 0:03:00]} 11. Nf4 {[%emt 0:02:35]} Bb4 {[%emt 0:03:26]} 12. Bd2 {[%emt 0:00:53]} O-O {[%emt 0:01:09]} 13. Bxb4 {[%emt 0:03:00]} Nxb4 {[%emt 0:00:13]} 14. Nc3 {[%emt 0:00:07]} b5 {[%emt 0:04:28]} 15. Rc1 {[%emt 0:09:11]} Nc6 {[%emt 0:03:55]} 16. Ncxd5 {[%emt 0:01:38]} exd5 {[%emt 0:02:34]} 17. Bxd5 {[%emt 0:00:03]} Ne7 {[%emt 0:02:59]} 18. Rxc8 {[%emt 0:03:48]} Bxc8 {[%emt 0:02:34]} 19. Bb3 {[%emt 0:00:32]} Nb6 {[%emt 0:03:00]} 20. d5 {[%emt 0:04:59]} Nc4 {[%emt 0:02:04]} 21. Bc2 {[%emt 0:05:17]} Re8 {[%emt 0:08:35]} 22. b3 {[%emt 0:01:53]} Nb6 {[%emt 0:00:48]} 23. d6 {[%emt 0:07:44]} Nc6 {[%emt 0:05:23]} 24. Qd3 {[%emt 0:03:49]} g6 {[%emt 0:01:59]} 25. Qxb5 {[%emt 0:01:21]} Nd4 {[%emt 0:03:56]} 26. Qd3 {[%emt 0:00:02]} Nxc2 {[%emt 0:01:29]} 27. Qxc2 {[%emt 0:00:02]} Bf5 {[%emt 0:00:25]} 28. Qd2 {[%emt 0:00:18]} Nd7 {[%emt 0:03:05]} 29. Qd5 {[%emt 0:13:09]} Nf6 {[%emt 0:03:59]} 30. Qd4 {[%emt 0:15:32]} Qb6 {[%emt 0:18:43]} 31. Qb2 {[%emt 0:01:47]} Qa5 {[%emt 0:02:28]} 32. b4 {[%emt 0:02:46]} Qb5 {[%emt 0:02:00]} 33. a4 {[%emt 0:00:12]} Qb7 {[%emt 0:02:12]} 34. Qd4 {[%emt 0:09:11]} Qb6 {[%emt 0:05:59]} 35. Qb2 {[%emt 0:05:44]} Qb7 {[%emt 0:00:43]} 36. Qd4 {[%emt 0:00:19]} Ne4 {[%emt 0:04:46]} 37. Nd5 {[%emt 0:00:32]} Ng5 {[%emt 0:00:33]} 38. Re3 {[%emt 0:00:41]} Rd8 {[%emt 0:02:07]} 39. f3 {[%emt 0:04:38]} Ne6 {[%emt 0:01:13]} 40. Qd2 {[%emt 0:00:00]} Nf8 {[%emt 0:00:00]} 41. Rc3 {[%emt 0:06:28]} Be6 {[%emt 0:04:39]} 42. Ne7+ {[%emt 0:01:32]} Kg7 {[%emt 0:00:46]} 43. Qf4 {[%emt 0:01:30]} Nd7 {[%emt 0:06:13]} 44. Rc7 {[%emt 0:09:01]} Qb6+ {[%emt 0:01:12]} 45. Kg2 {[%emt 0:00:32]} h6 {[%emt 0:03:06]} 46. h4 {[%emt 0:00:35]} Qa6 {[%emt 0:02:13]} 47. b5 {[%emt 0:00:56]} Qa5 {[%emt 0:02:33]} 48. Rc1 {[%emt 0:01:22]} Qb6 {[%emt 0:03:48]} 49. Rc6 {[%emt 0:06:16]} Qa5 {[%emt 0:01:58]} 50. Rc1 {[%emt 0:01:10]} Qb6 {[%emt 0:00:37]} 51. Nc6 Rc8 52. Rc3 a6 53. Qb4 Bd5 54. bxa6 1/2-1/2

[Event "4th Memorial Warakomska-B 2020"]
[Site "Suwalki"]
[Date "2020.08.08"]
[Round "4.5"]
[White "Czech, Mieczyslaw"]
[Black "Borowik, Wojciech"]
[Result "0-1"]
[ECO "B90"]
[WhiteElo "1863"]
[BlackElo "1769"]
[Annotator "NA"]
[PlyCount "84"]
[EventDate "2020.08.06"]
[EventType "swiss"]
[EventCountry "POL"]
[SourceTitle "playchess.com"]
[Source "ChessBase"]
[SourceQuality "1"]
[TimeControl "40/5400+30:1800+30"]

1. e4 {[%emt 0:00:00]} c5 {[%emt 0:00:00]} 2. Nf3 {[%emt 0:00:00]} d6 {[%emt 0:00:00]} 3. d4 {[%emt 0:00:00]} cxd4 {[%emt 0:00:00]} 4. Nxd4 {[%emt 0:00:18]} Nf6 {[%emt 0:00:09]} 5. Nc3 {[%emt 0:00:12]} a6 {[%emt 0:00:08]} 6. a4 {[%emt 0:02:39]} e5 {[%emt 0:04:49]} 7. Nb3 {[%emt 0:04:43]} Be6 {[%emt 0:00:50]} 8. Be2 {[%emt 0:00:40]} Be7 {[%emt 0:00:54]} 9. O-O {[%emt 0:00:31]} O-O {[%emt 0:00:56]} 10. Re1 {[%emt 0:00:56] 10.Bf3 is becoming the main line. B92: Sicilian Najdorf: 6 Be2.} Nbd7 {[%emt 0:02:15]} 11. Be3 {[%emt 0:00:29]} Qc7 {[%emt 0:01:05]} 12. f3 {[%emt 0:00:53]} Rac8 {[%emt 0:01:55] [#]} 13. Rc1 $146 {[%emt 0:01:14]} ({Predecessor:} 13. Nd2 d5 14. exd5 Nxd5 15. Nxd5 Bxd5 16. c4 Bc6 17. Bd3 Bc5 18. Nf1 Rcd8 19. Qc2 {½-½ (32) Balazs,A (1975)-Mazak,L (1835) Hungary 2013}) 13... Rfd8 {[%emt 0:02:22]} 14. Nd5 {[%emt 0:04:38]} Nxd5 {[%emt 0:00:36]} 15. exd5 {[%emt 0:00:08]} Bf5 {[%emt 0:00:04]} 16. c4 {[%emt 0:01:32]} Bg6 {[%emt 0:05:05]} 17. Kh1 {[%emt 0:00:49]} f5 {[%emt 0:00:41]} 18. Nd2 {[%emt 0:02:53]} f4 {[%emt 0:03:46]} 19. Bf2 {[%emt 0:00:22]} Bf5 {[%emt 0:04:17]} 20. b4 {[%emt 0:01:11]} a5 {[%emt 0:01:02]} 21. b5 {[%emt 0:04:30]} (21. c5 $5) 21... b6 {[%emt 0:00:43]} 22. Ne4 {[%emt 0:05:02]} g5 {[%emt 0:09:04]} 23. Bd3 {[%emt 0:03:08]} Bg6 {[%emt 0:01:27]} 24. h3 {[%emt 0:06:27]} Kg7 {[%emt 0:06:11]} 25. Qe2 {[%emt 0:01:21]} Rh8 {[%emt 0:01:03]} 26. Kg1 {[%emt 0:00:37]} h5 {[%emt 0:05:17]} 27. Red1 {[%emt 0:02:42]} Rcg8 {[%emt 0:04:53]} (27... Bxe4 $11 28. Qxe4 Rh6) 28. Kf1 {[%emt 0:04:13]} (28. c5 $1 $14 bxc5 {[#]} 29. Nxc5 $1 {[%mdl 512]} Nxc5 30. Bxg6) 28... Kf8 {[%emt 0:00:35]} 29. Ke1 {[%emt 0:01:20]} (29. c5 $11 bxc5 30. Kg1) 29... g4 {[%emt 0:10:49]} 30. hxg4 {[%emt 0:00:42]} (30. Qc2 $15) 30... hxg4 {[%emt 0:00:01]} 31. fxg4 {[%emt 0:00:42]} Rh2 {[%emt 0:00:38]} 32. Qf3 {[%emt 0:02:22] [#]} Bxe4 $1 {[%emt 0:14:04]} 33. Bxe4 {[%emt 0:02:46]} Nc5 {[%emt 0:01:21]} 34. Bc2 {[%emt 0:01:13]} Bg5 {[%emt 0:04:14]} 35. Ke2 {[%emt 0:03:34]} Rgh8 {[%emt 0:04:42]} 36. Rg1 {[%emt 0:01:23]} (36. Rf1 $11) 36... Kf7 {[%emt 0:03:59]} 37. Kf1 $1 {[%emt 0:02:58]} Kg7 {[%emt 0:03:17]} 38. Bxc5 $2 {[%emt 0:04:29]} (38. Re1 $17) 38... Qxc5 39. Qe4 {[%emt 0:01:33]} Bh4 {[%emt 0:05:28]} 40. Qe2 $2 {[%emt 0:00:00]} (40. Ke2 $17) 40... Qxg1+ {[%emt 0:00:00]} 41. Kxg1 {[%emt 0:03:54]} Rh1+ {[%emt 0:01:42]} 42. Kxh1 {[%emt 0:01:02]} Bf2+ {[%emt 0:00:36]} 0-1

[Event "4th Memorial Warakomska-B 2020"]
[Site "Suwalki"]
[Date "2020.08.08"]
[Round "4.6"]
[White "Lukasik, Zuzanna"]
[Black "Milanowski, Jan"]
[Result "1/2-1/2"]
[ECO "C06"]
[WhiteElo "1553"]
[BlackElo "1787"]
[Annotator "NA"]
[PlyCount "81"]
[EventDate "2020.08.06"]
[EventType "swiss"]
[EventCountry "POL"]
[SourceTitle "playchess.com"]
[Source "ChessBase"]
[SourceQuality "1"]
[TimeControl "40/5400+30:1800+30"]

1. e4 {[%emt 0:00:00]} e6 {[%emt 0:00:00]} 2. d4 {[%emt 0:00:00]} d5 {[%emt 0:00:10]} 3. Nd2 {[%emt 0:00:00]} Nf6 {[%emt 0:00:39]} 4. e5 {[%emt 0:00:00]} Nfd7 {[%emt 0:00:02]} 5. Bd3 {[%emt 0:00:37]} c5 {[%emt 0:00:15]} 6. c3 {[%emt 0:00:17]} Nc6 {[%emt 0:00:09]} 7. Ne2 {[%emt 0:00:15]} cxd4 {[%emt 0:00:41]} 8. cxd4 {[%emt 0:00:25]} Be7 {[%emt 0:06:21]} 9. O-O {[%emt 0:00:38]} Qb6 {[%emt 0:01:44]} 10. Nf3 {[%emt 0:00:40]} Nf8 {[%emt 0:03:59]} 11. Nc3 {[%emt 0:05:42]} a6 {[%emt 0:02:31]} 12. a3 {[%emt 0:01:34]} Bd7 {[%emt 0:01:11]} 13. Bc2 {[%emt 0:05:29]} Na5 {[%emt 0:03:28]} 14. Ba4 {[%emt 0:05:19]} Rc8 {[%emt 0:00:42]} 15. Bxd7+ {[%emt 0:04:35]} Nxd7 {[%emt 0:00:07]} 16. Na4 {[%emt 0:04:33]} Qb3 {[%emt 0:00:50]} 17. Nd2 {[%emt 0:11:33]} Qxd1 {[%emt 0:07:35]} 18. Rxd1 {[%emt 0:00:10]} b5 {[%emt 0:01:54]} 19. Nc3 {[%emt 0:00:29]} Nb6 {[%emt 0:01:40]} 20. Ne2 {[%emt 0:03:12]} Nbc4 {[%emt 0:04:18]} 21. Nxc4 {[%emt 0:04:05]} Rxc4 {[%emt 0:05:15]} 22. b4 {[%emt 0:01:32]} Nb3 {[%emt 0:06:07]} 23. Rb1 {[%emt 0:01:53]} Nxc1 {[%emt 0:00:30]} 24. Rbxc1 {[%emt 0:00:20]} Rxc1 {[%emt 0:00:12]} 25. Nxc1 {[%emt 0:00:08]} Kd7 {[%emt 0:00:11]} 26. Nb3 {[%emt 0:00:12]} Rc8 {[%emt 0:00:28]} 27. Nc5+ {[%emt 0:00:25]} Bxc5 {[%emt 0:00:10]} 28. bxc5 {[%emt 0:00:11]} a5 {[%emt 0:01:03]} 29. Rb1 {[%emt 0:00:22]} Rb8 {[%emt 0:00:18]} 30. Kf1 {[%emt 0:00:14]} f6 {[%emt 0:00:36]} 31. f4 {[%emt 0:00:28]} fxe5 {[%emt 0:00:12]} 32. fxe5 {[%emt 0:00:13]} Kc6 {[%emt 0:03:48]} 33. Ke2 {[%emt 0:00:40]} Rf8 {[%emt 0:00:26]} 34. Ke3 {[%emt 0:00:27]} g5 {[%emt 0:02:28]} 35. h3 {[%emt 0:03:17]} h6 {[%emt 0:03:11]} 36. g3 {[%emt 0:01:04]} h5 {[%emt 0:01:04]} 37. a4 {[%emt 0:01:23]} b4 {[%emt 0:00:23]} 38. Ke2 {[%emt 0:00:55]} Rf7 {[%emt 0:03:19]} 39. Rg1 {[%emt 0:06:16]} Rf8 {[%emt 0:26:44]} 40. Rb1 {[%emt 0:00:00]} Rf7 {[%emt 0:00:00]} 41. Rg1 {[%emt 0:03:10]} 1/2-1/2

[Event "4th Memorial Warakomska-B 2020"]
[Site "Suwalki"]
[Date "2020.08.08"]
[Round "4.7"]
[White "Szwaj, Jacek"]
[Black "Kasperczyk, Szymon"]
[Result "0-1"]
[ECO "B33"]
[WhiteElo "1983"]
[BlackElo "1711"]
[Annotator "ChessBase"]
[PlyCount "114"]
[EventDate "2020.08.06"]
[EventType "swiss"]
[EventCountry "POL"]
[SourceTitle "playchess.com"]
[Source "ChessBase"]
[SourceQuality "1"]
[TimeControl "40/5400+30:1800+30"]

1. e4 {[%emt 0:00:00]} c5 {[%emt 0:00:00]} 2. Nf3 {[%emt 0:00:00]} Nc6 {[%emt 0:00:24]} 3. d4 {[%emt 0:00:00]} cxd4 {[%emt 0:00:06]} 4. Nxd4 {[%emt 0:00:00]} Nf6 {[%emt 0:00:07]} 5. Nc3 {[%emt 0:00:00]} e5 {[%emt 0:00:37]} 6. Ndb5 {[%emt 0:00:00]} d6 {[%emt 0:00:10]} 7. Bg5 {[%emt 0:00:09]} a6 {[%emt 0:00:14]} 8. Na3 {[%emt 0:00:04]} b5 {[%emt 0:00:06]} 9. Nd5 {[%emt 0:00:10]} Be7 {[%emt 0:00:16]} 10. Bxf6 {[%emt 0:00:05]} Bxf6 {[%emt 0:02:12]} 11. c4 {[%emt 0:00:09]} b4 {[%emt 0:01:37]} 12. Nc2 {[%emt 0:00:05]} a5 {[%emt 0:01:18]} 13. g3 {[%emt 0:00:13]} O-O {[%emt 0:04:30]} 14. Bg2 {[%emt 0:00:08]} Be7 {[%emt 0:05:05]} 15. O-O {[%emt 0:00:22]} Be6 {[%emt 0:00:21]} 16. b3 {[%emt 0:01:46]} Bxd5 {[%emt 0:02:14]} 17. Qxd5 {[%emt 0:00:14]} Qc7 {[%emt 0:01:03]} 18. Qd3 {[%emt 0:02:18]} Rfd8 {[%emt 0:03:43]} 19. Kh1 {[%emt 0:01:04]} a4 {[%emt 0:02:20]} 20. Qe3 {[%emt 0:05:57]} Qa7 {[%emt 0:05:31]} 21. Qd2 {[%emt 0:00:30]} Qc5 {[%emt 0:05:07]} 22. Rfd1 {[%emt 0:03:29]} Bf6 {[%emt 0:07:29]} 23. Qe2 {[%emt 0:06:40]} axb3 {[%emt 0:07:52]} 24. axb3 {[%emt 0:00:08]} Rxa1 {[%emt 0:00:15]} 25. Rxa1 {[%emt 0:01:23]} Nd4 {[%emt 0:10:30]} 26. Qd3 {[%emt 0:01:05]} Nxc2 {[%emt 0:00:48]} 27. Qxc2 {[%emt 0:00:04]} Rb8 {[%emt 0:01:52]} 28. Qd2 {[%emt 0:04:03]} Bd8 {[%emt 0:02:41]} 29. Kg1 {[%emt 0:08:07]} Bb6 {[%emt 0:01:31]} 30. Kf1 {[%emt 0:00:10]} Qc7 {[%emt 0:01:40]} 31. Ra2 {[%emt 0:00:59]} Bd4 {[%emt 0:00:44]} 32. Bf3 {[%emt 0:05:32]} Qb7 {[%emt 0:03:55]} 33. Kg2 {[%emt 0:00:15]} g6 {[%emt 0:01:25]} 34. h4 {[%emt 0:00:12]} Ra8 {[%emt 0:03:00]} 35. Rxa8+ {[%emt 0:01:07]} Qxa8 {[%emt 0:00:05]} 36. h5 {[%emt 0:00:17]} Qb8 {[%emt 0:10:02]} 37. Qg5 {[%emt 0:01:27]} Bb6 {[%emt 0:00:58]} 38. Qe7 {[%emt 0:06:01]} Qd8 {[%emt 0:04:05]} 39. Qb7 {[%emt 0:04:07]} Bc5 {[%emt 0:00:22]} 40. Bg4 {[%emt 0:00:00]} Qf6 {[%emt 0:00:00]} 41. f3 {[%emt 0:17:52]} Qg5 {[%emt 0:10:17]} 42. Qc8+ {[%emt 0:16:22]} Kg7 {[%emt 0:00:08]} 43. Be6 {[%emt 0:00:39]} fxe6 {[%emt 0:12:32]} 44. Qxe6 {[%emt 0:00:59]} Qd8 {[%emt 0:02:08]} 45. h6+ {[%emt 0:01:10]} Kxh6 {[%emt 0:00:54]} 46. Qf7 {[%emt 0:00:03]} Be3 {[%emt 0:00:38]} 47. Kh3 {[%emt 0:00:51]} Bg5 {[%emt 0:01:50]} 48. Qb7 {[%emt 0:00:45]} Qf8 {[%emt 0:01:01]} 49. Kg2 {[%emt 0:01:50]} Be7 {[%emt 0:00:27]} 50. Qxb4 {[%emt 0:00:21]} Kg7 {[%emt 0:00:37]} 51. Qc3 {[%emt 0:00:08]} h5 {[%emt 0:00:24]} 52. b4 {[%emt 0:00:36]} h4 {[%emt 0:00:12]} 53. b5 {[%emt 0:03:00]} hxg3 {[%emt 0:00:21]} 54. Kxg3 {[%emt 0:01:45]} Qf4+ {[%emt 0:00:52]} 55. Kf2 {[%emt 0:00:14]} Qh2+ {[%emt 0:01:46]} 56. Ke1 {[%emt 0:00:21]} Bg5 {[%emt 0:01:14]} 57. Qb3 {[%emt 0:02:42]} Qd2+ {[%emt 0:00:22]} 0-1

[Event "4th Memorial Warakomska-B 2020"]
[Site "Suwalki"]
[Date "2020.08.08"]
[Round "4.8"]
[White "Ryszkiewicz, Adam"]
[Black "Pieczulis, Blazej"]
[Result "1-0"]
[ECO "C05"]
[WhiteElo "1941"]
[BlackElo "1608"]
[Annotator "ChessBase"]
[PlyCount "47"]
[EventDate "2020.08.06"]
[EventType "swiss"]
[EventCountry "POL"]
[SourceTitle "playchess.com"]
[Source "ChessBase"]
[SourceQuality "1"]
[TimeControl "40/5400+30:1800+30"]

1. e4 {[%emt 0:00:00]} e6 {[%emt 0:00:00]} 2. d4 {[%emt 0:00:00]} d5 {[%emt 0:00:00]} 3. Nd2 {[%emt 0:00:00]} Nf6 {[%emt 0:00:00]} 4. e5 {[%emt 0:00:00]} Nfd7 {[%emt 0:00:00]} 5. f4 {[%emt 0:00:00]} c5 {[%emt 0:00:03]} 6. c3 {[%emt 0:00:00]} Nc6 {[%emt 0:00:04]} 7. Ndf3 {[%emt 0:00:14]} a6 {[%emt 0:00:31]} 8. Bd3 {[%emt 0:03:44]} b5 {[%emt 0:03:00]} 9. Ne2 {[%emt 0:03:09]} Qb6 {[%emt 0:02:20]} 10. O-O {[%emt 0:04:01]} g6 {[%emt 0:01:38]} 11. Kh1 {[%emt 0:00:36]} c4 {[%emt 0:00:23]} 12. Bc2 {[%emt 0:00:19]} b4 {[%emt 0:00:15]} 13. g4 {[%emt 0:02:51]} Bb7 {[%emt 0:00:56]} 14. f5 {[%emt 0:03:16]} Nd8 {[%emt 0:20:32]} 15. Ng3 {[%emt 0:07:06]} Bg7 {[%emt 0:01:02]} 16. Ng5 {[%emt 0:09:34]} O-O {[%emt 0:02:42]} 17. f6 {[%emt 0:04:45]} Bh8 {[%emt 0:00:25]} 18. Qd2 {[%emt 0:00:58]} Bxf6 {[%emt 0:09:56]} 19. exf6 {[%emt 0:02:04]} e5 {[%emt 0:00:10]} 20. Nxh7 {[%emt 0:00:17]} e4 {[%emt 0:00:31]} 21. Qh6 {[%emt 0:00:07]} Ne6 {[%emt 0:01:00]} 22. Ng5 {[%emt 0:00:11]} Nxf6 {[%emt 0:00:39]} 23. Rxf6 {[%emt 0:00:06]} Qd8 {[%emt 0:00:37]} 24. Qh7# 1-0

[Event "4th Memorial Warakomska-B 2020"]
[Site "Suwalki"]
[Date "2020.08.08"]
[Round "4.10"]
[White "Widelski, Kacper"]
[Black "Stefaniuk, Zbigniew"]
[Result "1-0"]
[ECO "C43"]
[WhiteElo "1879"]
[BlackElo "1538"]
[Annotator "NA"]
[PlyCount "95"]
[EventDate "2020.08.06"]
[EventType "swiss"]
[EventCountry "POL"]
[SourceTitle "playchess.com"]
[Source "ChessBase"]
[SourceQuality "1"]
[TimeControl "40/5400+30:1800+30"]

{[%evp 14,87,15,0,32767,0,32767,0,32767,-18,9,-29,32767,32767,-12,32767,32767,-73,-72,32767,-35,-40,-10,-5,32767,32767,46,32767,32767,60,32767,32767,32767,32767,280,290,32767,32767,275,289,32767,294,410,389,408,475,432,495,505,472,32767,532,522,473,585,32767,586,706,32767,32767,32767,32767,32767,891,1998,32767,32767,32767,32767,32767,32767,32767,32767,979,1271,2803]} 1. e4 {[%emt 0:00:00]} e5 {[%emt 0:00:00]} 2. Nf3 {[%emt 0:00:00]} Nf6 {[%emt 0:00:00]} 3. d4 {[%emt 0:01:15]} Nxe4 {[%emt 0:00:16]} 4. Nxe5 {[%emt 0:02:00]} d5 {[%emt 0:01:42]} 5. Bd3 {[%emt 0:04:59]} Nd7 {[%emt 0:02:46]} 6. O-O {[%emt 0:19:16]} Nxe5 {[%emt 0:02:35]} 7. dxe5 {[%emt 0:01:30]} Nc5 {[%emt 0:00:51]} 8. Be2 {[%emt 0:01:49]} Be7 {[%emt 0:01:36] C43: Petroff Defence: 3 d4.} 9. Be3 {[%emt 0:03:02]} O-O {[%emt 0:03:56]} 10. c3 {[%emt 0:03:37]} Bf5 {[%emt 0:02:43] [#]} 11. Na3 $146 {[%emt 0:13:56]} ({Predecessor:} 11. g4 Bc8 12. Nd2 a5 13. Nb3 Nxb3 14. axb3 f6 15. exf6 Bxf6 16. f4 Qe7 17. Bf2 {1-0 (51) Silin,V (2275)-Rutkus,R (1893) ICCF email 2010}) 11... Ne6 {[%emt 0:04:39]} 12. Qb3 {[%emt 0:12:58]} c6 {[%emt 0:06:15]} 13. Nc2 {[%emt 0:04:03]} Qc7 {[%emt 0:06:14]} 14. f4 {[%emt 0:02:06]} Nc5 {[%emt 0:04:20]} 15. Bxc5 {[%emt 0:00:41]} Bxc5+ {[%emt 0:02:15]} 16. Nd4 {[%emt 0:01:28]} Qb6 {[%emt 0:06:54]} 17. Qxb6 {[%emt 0:00:36]} Bxb6 {[%emt 0:00:49]} 18. Kh1 {[%emt 0:01:17]} Bxd4 {[%emt 0:00:54]} 19. cxd4 {[%emt 0:00:08]} Rfe8 {[%emt 0:02:14]} 20. Rac1 {[%emt 0:02:35]} Re6 {[%emt 0:03:02]} 21. Bf3 {[%emt 0:02:03]} Rg6 {[%emt 0:10:04]} 22. h3 {[%emt 0:01:20]} Re8 {[%emt 0:08:15]} 23. Rc3 {[%emt 0:01:49]} f6 $2 {[%emt 0:02:34]} (23... Bd7 $16) 24. Bh5 {[%emt 0:00:21] Skewer} Be4 {[%emt 0:00:53]} 25. Bxg6 {[%emt 0:00:05]} hxg6 {[%emt 0:00:11]} 26. Ra3 {[%emt 0:01:11]} a6 {[%emt 0:01:24]} 27. Kg1 {[%emt 0:02:49]} f5 {[%emt 0:00:50]} (27... Re7 {was worth a try.} 28. Re3 Rd7) 28. Kf2 {[%emt 0:00:46]} Re7 {[%emt 0:00:26]} 29. Rc1 {[%emt 0:00:39]} Kf8 {[%emt 0:00:28]} 30. h4 {[%emt 0:00:56]} Ke8 {[%emt 0:00:56]} 31. Rh1 {[%emt 0:01:05]} Re6 {[%emt 0:01:19]} 32. Rb3 {[%emt 0:00:23]} Re7 {[%emt 0:03:11]} 33. h5 {[%emt 0:00:39]} Kf7 {[%emt 0:00:47]} 34. h6 {[%emt 0:00:43]} Kg8 {[%emt 0:00:39]} 35. hxg7 {[%emt 0:00:12]} Rxg7 {[%emt 0:00:29]} 36. Rbh3 {[%emt 0:00:13]} g5 {[%emt 0:00:35]} 37. Rh8+ {[%emt 0:00:49]} Kf7 {[%emt 0:00:12]} 38. R1h7 {[%emt 0:00:25]} gxf4 {[%emt 0:00:24]} 39. Rxg7+ {[%emt 0:00:06]} Kxg7 {[%emt 0:00:11]} 40. Rb8 {[%emt 0:00:00]} b5 {[%emt 0:00:00]} 41. Rb6 {[%emt 0:00:24]} a5 {[%emt 0:01:15]} 42. Rxc6 {[%emt 0:00:22]} Bb1 {[%emt 0:00:48]} 43. Rc5 {[%emt 0:01:21]} Bxa2 $18 {[%emt 0:00:13]} 44. Rxb5 {[%emt 0:00:06]} a4 {[%emt 0:00:13]} 45. Ra5 {[%emt 0:00:08]} Bb3 {[%emt 0:00:18]} 46. Kf3 {[%emt 0:00:05]} Kf7 {[%emt 0:00:35]} 47. Kxf4 {[%emt 0:00:07]} Ke6 {[%emt 0:00:17]} 48. Ra6+ {[%emt 0:00:06]} 1-0

[Event "4th Memorial Warakomska-B 2020"]
[Site "Suwalki"]
[Date "2020.08.08"]
[Round "4.11"]
[White "Wierzbicki, Michal"]
[Black "Borowik, Karol"]
[Result "1-0"]
[ECO "A48"]
[WhiteElo "1849"]
[BlackElo "1426"]
[Annotator "NA"]
[PlyCount "49"]
[EventDate "2020.08.06"]
[EventType "swiss"]
[EventCountry "POL"]
[SourceTitle "playchess.com"]
[Source "ChessBase"]
[SourceQuality "1"]
[TimeControl "40/5400+30:1800+30"]

1. d4 {[%emt 0:00:00]} Nf6 {[%emt 0:00:00]} 2. Nf3 {[%emt 0:00:00]} g6 {[%emt 0:00:00]} 3. c4 {[%emt 0:00:00]} Bg7 4. Nc3 {[%emt 0:00:00]} O-O {[%emt 0:00:02]} 5. Bg5 {[%emt 0:00:58]} d6 {[%emt 0:03:42]} 6. e3 {[%emt 0:00:07]} c6 {[%emt 0:05:52]} 7. Be2 {[%emt 0:00:28]} Nbd7 {[%emt 0:04:56]} 8. O-O {[%emt 0:00:20]} a6 {[%emt 0:03:09]} 9. a4 {[%emt 0:02:39] E61: King's Indian: Early deviations for White, including Smyslov System.} b6 {[%emt 0:09:36]} 10. Qc2 {[%emt 0:05:39]} Bb7 11. Rfd1 {[%emt 0:02:05]} Qc7 {[%emt 0:18:57] [#]} 12. Nd2 $146 {[%emt 0:13:09]} ({Predecessor:} 12. e4 e5 13. d5 cxd5 14. cxd5 h6 15. Bh4 Nh5 16. Nd2 Nf4 17. Bf1 f5 18. f3 fxe4 19. Ndxe4 {1-0 (48) Sagar,S (2391)-Verikakis,M (2071) Paleochora 2017}) 12... Rac8 {[%emt 0:15:45]} 13. f4 {[%emt 0:02:58]} Rfe8 {[%emt 0:07:08]} 14. Bh4 {[%emt 0:16:54]} h6 {[%emt 0:04:47]} 15. f5 {[%emt 0:05:27]} g5 {[%emt 0:04:11]} 16. Bg3 {[%emt 0:01:14]} e5 {[%emt 0:05:54]} 17. fxe6 {[%emt 0:02:27]} fxe6 $2 {[%emt 0:00:48]} (17... Rxe6 $16 {keeps fighting.} 18. e4 c5) 18. Nde4 {[%emt 0:01:30]} Nxe4 {[%emt 0:01:23]} 19. Nxe4 {[%emt 0:00:06]} e5 {[%emt 0:00:26]} 20. dxe5 {[%emt 0:01:07]} Bxe5 {[%emt 0:05:40]} 21. Nxd6 {[%emt 0:01:40] Double Attack} Bxd6 {[%emt 0:01:31]} 22. Qg6+ {[%emt 0:00:55] Double Attack} Kh8 {[%emt 0:00:37]} 23. Qxh6+ {[%emt 0:00:49]} Kg8 {[%emt 0:00:04]} 24. Qxg5+ {[%emt 0:01:22]} Kh8 {[%emt 0:00:13]} 25. Rxd6 {[%emt 0:01:18]} 1-0